bitfinex-derivatives/quotes_SOLF0:USTF0_20241203
["timestamp","ask_amount","ask_price","bid_price","bid_amount"]
[1733264856729,10.32283449,236.33,236.25,2.1147]
[1733264856927,2.1144,236.3,236.25,2.1147]
[1733264857829,2.1144,236.3,236.17,2.587]
[1733264858030,2.1144,236.3,236.25,2.1147]
[1733264858228,2.1144,236.3,236.17,2.587]
[1733264858430,2.1144,236.3,236.21,2.1151]
[1733264858624,2.1144,236.3,236.17,2.587]
[1733264858832,2.1144,236.3,236.18,1.05815363]
[1733264859032,2.1144,236.3,236.25,2.1147]
[1733264859428,2.1144,236.3,236.26,2.1147]
[1733264859728,2.1145,236.29,236.17,2.587]
[1733264859929,10.32283449,236.33,236.25,2.1147]
[1733264861932,2.1144,236.29,236.25,2.1147]
[1733264862225,10.32283449,236.3,236.14,3.36]
[1733264862426,2.1149,236.24,236.12,13.68283449]
[1733264862626,2.1149,236.24,236.15,2.1156]
[1733264862831,2.1149,236.24,236.12,3.36]
[1733264863337,2.1149,236.24,236.2,2.1152]
[1733264864533,2.1149,236.24,236.14,10.32283449]
[1733264865132,2.1149,236.24,236.2,2.1151]
[1733264865830,7.7925,236.34,236.17,10.32283449]
[1733264866031,18.11533449,236.34,236.17,10.32283449]
[1733264866232,2.1143,236.3,236.26,2.1146]
[1733264867030,15.46673449,236.34,236.2,3.36]
[1733264867233,5.1439,236.34,236.22,10.32283449]
[1733264867531,5.1439,236.34,236.25,2.1147]
[1733264867734,5.1439,236.34,236.22,10.32283449]
[1733264868129,10.32283449,236.39,236.29,2.1143]
[1733264868534,10.32283449,236.39,236.22,10.32283449]
[1733264868737,2.114,236.34,236.22,10.32283449]
[1733264869338,2.114,236.34,236.3,2.1143]
[1733264869536,10.32283449,236.39,236.3,2.1143]
[1733264869933,10.32283449,236.39,236.31,2.1142]
[1733264870239,2.1139,236.36,236.31,2.1142]
[1733264871239,10.32283449,236.39,236.31,2.1142]
[1733264872041,2.1139,236.35,236.31,2.1142]
[1733264872433,2.1139,236.35,236.32,2.1141]
[1733264872634,12.43643449,236.39,236.22,12.92553449]
[1733264872844,10.32283449,236.39,236.22,2.6027]
[1733264873143,10.32283449,236.39,236.24,10.32283449]
[1733264873442,2.1137,236.38,236.24,10.32283449]
[1733264873739,8.71362278,236.38,236.28,6.59992278]
[1733264873944,8.71362278,236.38,236.33,2.114]
[1733264874246,2.1137,236.37,236.33,2.114]
[1733264876449,8.71352278,236.38,236.34,2.114]
[1733264876646,8.5122,236.43,236.28,6.59992278]
[1733264876852,6.59992278,236.39,236.28,6.59992278]
[1733264877143,6.59992278,236.39,236.22,7.5796]
[1733264877144,2.1133,236.42,236.31,6.59992278]
[1733264877347,6.59992278,236.41,236.31,6.59992278]
[1733264877648,11.75212278,236.43,236.34,6.59992278]
[1733264878145,6.59992278,236.43,236.34,6.59992278]
[1733264878347,6.59992278,236.43,236.4,2.1134]
[1733264878957,3.36,236.49,236.4,2.1134]
[1733264879259,6.59992278,236.45,236.4,2.1134]
[1733264879461,3.36,236.49,236.42,2.1132]
[1733264879659,8.71282278,236.46,236.42,2.1132]
[1733264882055,3.36,236.6,236.45,6.59992278]
[1733264882254,5.0925,236.58,236.45,6.59992278]
[1733264882456,6.59992278,236.56,236.45,6.59992278]
[1733264882658,2.1122,236.55,236.48,2.1127]
[1733264882850,6.59992278,236.56,236.45,6.59992278]
[1733264883160,2.112,236.57,236.52,2.1123]
[1733264883457,11.69242278,236.58,236.48,6.59992278]
[1733264884256,13.80422278,236.58,236.54,2.1122]
[1733264884557,11.69242278,236.58,236.54,2.1122]
[1733264884956,11.69242278,236.58,236.43,2.5662]
[1733264884957,5.0925,236.58,236.55,2.1121]
[1733264885257,5.0925,236.58,236.51,6.59992278]
[1733264885559,5.0925,236.58,236.55,2.1121]
[1733264886057,5.0925,236.58,236.5,6.59992278]
[1733264887049,5.0925,236.58,236.54,2.1122]
[1733264887661,2.1116,236.6,236.55,2.1121]
[1733264888851,2.1116,236.6,236.55,6.59992278]
[1733264889055,6.59992278,236.71,236.59,6.59992278]
[1733264889250,5.3695,236.7,236.59,6.59992278]
[1733264889450,7.4803,236.7,236.65,2.1112]
[1733264889854,5.3695,236.7,236.65,2.1112]
[1733264890059,5.3695,236.7,236.58,3.36]
[1733264891365,7.4803,236.7,236.61,2.1115]
[1733264891553,7.4803,236.7,236.57,10.28491008]
[1733264891554,5.3695,236.7,236.57,10.28491008]
[1733264891760,2.644,236.69,236.57,10.28491008]
[1733264891960,2.1112,236.65,236.6,2.1116]
[1733264892254,2.644,236.69,236.46,2.12001454]
[1733264892555,2.644,236.69,236.53,10.28491008]
[1733264892853,10.28491008,236.66,236.49,10.28491008]
[1733264893056,10.28491008,236.66,236.42,10.28491008]
[1733264893057,10.28491008,236.62,236.42,10.28491008]
[1733264893252,10.28491008,236.58,236.42,10.28491008]
[1733264893450,9.85605703,236.57,236.42,10.28491008]
[1733264893662,2.1125,236.51,236.46,2.1128]
[1733264894660,9.85605703,236.57,236.46,2.1128]
[1733264895754,2.1123,236.53,236.47,2.1128]
[1733264895955,9.85605703,236.57,236.47,2.1128]
[1733264896964,2.1124,236.52,236.47,2.1128]
[1733264899264,2.1124,236.52,236.42,10.28491008]
[1733264899265,2.1124,236.51,236.46,2.1129]
[1733264899562,9.85605703,236.57,236.42,10.28491008]
[1733264899759,7.7521,236.57,236.42,10.28491008]
[1733264899961,7.7521,236.57,236.52,2.1123]
[1733264900962,2.112,236.56,236.52,2.1123]
[1733264902262,4.9933,236.61,236.46,10.28491008]
[1733264902461,4.9933,236.61,236.44,3.34]
[1733264902662,4.9933,236.61,236.42,10.28491008]
[1733264902863,2.1125,236.51,236.47,2.1128]
[1733264903162,10.28491008,236.58,236.42,10.28491008]
[1733264903565,2.1122,236.54,236.46,2.1129]
[1733264903864,10.28491008,236.58,236.46,2.1129]
[1733264904166,2.1125,236.51,236.46,2.1129]
[1733264904362,10.28491008,236.58,236.46,2.1129]
[1733264904767,10.28491008,236.58,236.42,10.28491008]
[1733264904966,10.28491008,236.58,236.38,10.28491008]
[1733264905167,10.28491008,236.5,236.27,2.6918]
[1733264905367,10.28491008,236.5,236.35,2.1139]
[1733264905368,11.0385,236.49,236.35,2.1139]
[1733264905567,13.1239699,236.49,236.35,2.1139]
[1733264906562,2.1135,236.39,236.35,2.1139]
[1733264906764,10.28491008,236.46,236.34,2.1139]
[1733264906963,10.28491008,236.46,236.3,10.28491008]
[1733264907168,10.28491008,236.43,236.26,10.28491008]
[1733264907372,10.28491008,236.43,236.27,2.1145]
[1733264907673,2.1141,236.33,236.27,2.1145]
[1733264907972,3.34,236.39,236.26,10.28491008]
[1733264908173,3.34,236.39,236.29,2.1144]
[1733264908368,7.7902,236.38,236.29,2.1144]
[1733264908967,7.7902,236.38,236.26,10.28491008]
[1733264908968,7.7902,236.38,236.28,2.1145]
[1733264909473,7.7902,236.38,236.29,2.1144]
[1733264909866,7.7902,236.38,236.29,10.28491008]
[1733264910076,2.1137,236.37,236.32,2.1141]
[1733264910472,5.129,236.38,236.32,2.1141]
[1733264911568,5.129,236.38,236.29,10.28491008]
[1733264911777,5.129,236.38,236.31,2.1142]
[1733264912169,2.1138,236.37,236.31,2.1142]
[1733264912577,5.129,236.38,236.31,2.1142]
[1733264912777,2.1138,236.36,236.31,2.1142]
[1733264914471,5.129,236.38,236.28,2.1144]
[1733264914669,5.129,236.38,236.22,10.31192524]
[1733264914871,15.44092524,236.38,236.22,10.31192524]
[1733264915371,15.44092524,236.38,236.27,2.1145]
[1733264915372,2.1141,236.32,236.27,2.1145]
[1733264916682,3.34,236.34,236.18,2.6767]
[1733264916877,10.31516528,236.29,236.13,10.31516528]
[1733264917071,10.31516528,236.29,236.17,2.1154]
[1733264917072,2.115,236.23,236.17,2.1154]
[1733264917284,2.469,236.28,236.13,10.31516528]
[1733264917678,2.469,236.28,236.15,2.1156]
[1733264917679,2.1153,236.19,236.15,2.1156]
[1733264919180,2.1152,236.2,236.1,15.39516528]
[1733264919483,3.34,236.25,236.1,15.39516528]
[1733264919784,2.1152,236.2,236.15,2.1156]
[1733264920584,2.1151,236.22,236.1,15.39516528]
[1733264920779,3.34,236.25,236.1,15.39516528]
[1733264921081,3.34,236.25,236.15,2.1157]
[1733264921082,2.1153,236.2,236.15,2.1157]
[1733264921578,2.1151,236.21,236.16,2.1156]
[1733264921781,3.34,236.25,236.1,15.39516528]
[1733264922180,2.1152,236.21,236.15,2.1156]
[1733264922383,3.34,236.25,236.15,2.1156]
[1733264922983,2.1154,236.18,236.13,2.1158]
[1733264923689,2.1149,236.23,236.1,15.39516528]
[1733264923886,5.9476,236.27,236.1,15.39516528]
[1733264924085,5.9476,236.27,236.15,2.1157]
[1733264924683,10.31516528,236.26,236.1,10.31516528]
[1733264925588,10.31516528,236.26,236.08,2.6833]
[1733264925783,2.1157,236.15,236.1,2.1161]
[1733264926788,2.1157,236.15,236.11,2.116]
[1733264927193,3.32,236.2,236.08,2.6833]
[1733264927387,2.1156,236.16,236.1,2.116]
[1733264927789,2.1156,236.16,236.08,2.6833]
[1733264927984,2.1156,236.16,236.11,2.116]
[1733264929388,3.32,236.2,236.11,2.116]
[1733264929584,3.32,236.2,236.08,2.6833]
[1733264930286,3.32,236.2,236.1,2.1161]
[1733264930490,2.1158,236.14,236.1,2.1161]
[1733264931388,2.1156,236.16,236.11,2.1159]
[1733264931583,3.32,236.2,236.06,10.31516528]
[1733264931980,2.1158,236.14,236.09,2.1161]
[1733264932186,2.1158,236.14,236.06,10.31516528]
[1733264932384,13.63516528,236.2,236.06,10.31516528]
[1733264932790,3.32,236.2,236.06,10.31516528]
[1733264933690,2.1156,236.16,236.12,2.1159]
[1733264935388,2.1156,236.16,236.11,2.1159]
[1733264935693,2.1156,236.16,236.06,10.31516528]
[1733264936291,3.32,236.2,236.06,10.31516528]
[1733264937291,2.1156,236.16,236.06,10.31516528]
[1733264937890,2.1156,236.16,236.12,2.1159]
[1733264939294,2.1158,236.14,236.1,2.1161]
[1733264939494,2.5533,236.22,236.09,10.31516528]
[1733264939692,3.32,236.6,236.21,6.60895968]
[1733264939990,5.0663,236.48,236.4,6.60895968]
[1733264940192,5.0663,236.48,236.22,11.28175652]
[1733264940193,3.32,236.67,236.47,6.60895968]
[1733264940389,44.04,236.82,236.55,6.60895968]
[1733264940592,44.04,236.82,236.51,6.60895968]
[1733264940593,6.60895968,236.61,236.51,6.60895968]
[1733264940793,2.09332209,236.65,236.57,6.60895968]
[1733264940993,5.0663,236.66,236.57,6.60895968]
[1733264941491,3.32,236.65,236.57,6.60895968]
[1733264941690,3.32,236.65,236.56,10.28775435]
[1733264943700,3.32,236.65,236.46,3.32]
[1733264943701,5.4312,236.65,236.53,16.4607405]
[1733264944499,5.0663,236.66,236.53,16.4607405]
[1733264944699,3.32,236.76,236.58,16.4607405]
[1733264944899,3.32,236.75,236.59,1.05591688]
[1733264945107,3.32,236.75,236.58,16.4607405]
[1733264945598,3.32,236.75,236.59,2.7455325]
[1733264945804,3.32,236.75,236.62,16.4607405]
[1733264946000,3.32,236.75,236.61,16.4607405]
[1733264946396,2.1104,236.74,236.63,2.1113]
[1733264947201,2.1104,236.74,236.61,16.4607405]
[1733264947502,2.1104,236.74,236.61,18.5722405]
[1733264947702,3.32,236.75,236.61,16.4607405]
[1733264947905,2.1108,236.7,236.61,16.4607405]
[1733264950504,2.6897,236.74,236.61,16.4607405]
[1733264950705,2.6897,236.74,236.57,16.4607405]
[1733264951306,2.6897,236.74,236.53,16.4607405]
[1733264952001,2.6897,236.74,236.51,16.4607405]
[1733264952302,16.4607405,236.71,236.5,16.4607405]
[1733264953201,16.4607405,236.67,236.46,16.4607405]
[1733264953505,16.4607405,236.67,236.44,16.4607405]
[1733264953506,8.4311,236.66,236.44,16.4607405]
[1733264954303,8.4311,236.66,236.4,5.2545]
[1733264954502,8.4311,236.66,236.43,16.4607405]
[1733264954705,8.4311,236.66,236.34,2.1368]
[1733264954706,16.4607405,236.63,236.34,2.1368]
[1733264954901,16.4607405,236.59,236.34,2.1368]
[1733264955208,5.8368,236.58,236.35,16.4607405]
[1733264955606,2.113,236.45,236.35,16.4607405]
[1733264955800,3.3,236.44,236.35,16.4607405]
[1733264956010,5.4131,236.44,236.35,18.5745405]
[1733264956203,3.3,236.44,236.35,16.4607405]
[1733264956903,2.1132,236.43,236.35,16.4607405]
[1733264957301,2.1132,236.43,236.28,16.4607405]
[1733264957302,2.1137,236.37,236.28,18.5752405]
[1733264957700,5.4137,236.37,236.28,18.5752405]
[1733264957906,2.1138,236.36,236.28,18.5752405]
[1733264958308,2.1138,236.36,236.28,16.4607405]
[1733264958510,3.3,236.37,236.26,2.1146]
[1733264958809,2.1142,236.32,236.24,16.4607405]
[1733264959209,2.1142,236.31,236.24,18.5755405]
[1733264959711,2.1142,236.31,236.24,16.4607405]
[1733264961012,2.1142,236.31,236.24,18.5755405]
[1733264962003,2.1144,236.29,236.24,16.4607405]
[1733264962711,2.1141,236.33,236.26,2.1146]
[1733264963409,3.3,236.34,236.24,16.4607405]
[1733264963606,2.1143,236.31,236.24,16.4607405]
[1733264963806,16.4607405,236.43,236.24,16.4607405]
[1733264964109,2.1141,236.33,236.24,16.4607405]
[1733264964808,2.1141,236.33,236.27,2.1146]
[1733264965411,2.1138,236.36,236.29,2.1144]
[1733264966211,3.3,236.37,236.24,16.4607405]
[1733264967513,2.1139,236.35,236.27,2.1145]
[1733264967813,2.1139,236.35,236.24,16.4607405]
[1733264968013,2.1139,236.35,236.27,2.1146]
[1733264968212,2.114,236.34,236.24,16.4607405]
[1733264968414,3.3,236.37,236.24,16.4607405]
[1733264968715,3.3,236.37,236.28,2.1145]
[1733264969308,2.1142,236.31,236.26,2.1146]
[1733264969507,2.1142,236.31,236.24,16.4607405]
[1733264969713,3.3,236.37,236.24,16.4607405]
[1733264970015,2.1143,236.3,236.24,16.4607405]
[1733264970216,7.5615,236.44,236.24,16.4607405]
[1733264970411,2.1141,236.32,236.26,2.1146]
[1733264970809,2.1141,236.32,236.24,16.4607405]
[1733264971617,2.1141,236.32,236.25,10.31292425]
[1733264973119,2.1141,236.32,236.26,2.1146]
[1733264974513,2.1139,236.35,236.27,2.1146]
[1733264974713,3.3,236.38,236.25,10.31292425]
[1733264975011,3.3,236.38,236.26,2.1146]
[1733264976419,2.1143,236.31,236.26,2.1146]
[1733264977015,3.3,236.38,236.26,2.1146]
[1733264977219,2.1143,236.3,236.26,2.1146]
[1733264978327,2.1144,236.29,236.25,2.1148]
[1733264979219,3.3,236.38,236.24,10.31292425]
[1733264979420,13.61292425,236.38,236.24,10.31292425]
[1733264979827,2.1148,236.26,236.24,10.31292425]
[1733264980233,2.1147,236.26,236.24,10.31292425]
[1733264981331,2.1147,236.26,236.22,2.115]
[1733264981829,2.1145,236.28,236.2,12.42812425]
[1733264982025,3.3,236.31,236.2,12.42812425]
[1733264982528,2.1149,236.25,236.21,2.1151]
[1733264984425,3.3,236.31,236.21,2.1151]
[1733264984625,2.1149,236.24,236.21,2.1151]
[1733264984924,3.3,236.31,236.2,10.31292425]
[1733264985523,3.3,236.31,236.1,8.0878]
[1733264985524,3.3,236.31,236.16,10.31292425]
[1733264986129,3.3,236.31,236.16,12.42842425]
[1733264986828,2.1152,236.21,236.17,2.1155]
[1733264988834,2.1152,236.21,236.18,2.1154]
[1733264990133,3.3,236.31,236.16,10.31292425]
[1733264990333,2.1153,236.19,236.16,10.31292425]
[1733264991035,2.1153,236.2,236.16,10.31292425]
[1733264991433,2.1153,236.2,236.16,12.42842425]
[1733264992830,2.1153,236.2,236.16,10.31292425]
[1733264993137,2.1153,236.2,236.17,2.1155]
[1733264994826,3.28,236.24,236.17,2.1155]
[1733264995427,3.28,236.24,236.16,10.31292425]
[1733264996130,2.1154,236.19,236.16,12.42852425]
[1733264996529,3.28,236.24,236.16,10.31292425]
[1733264996734,2.1154,236.19,236.16,10.31292425]
[1733264997631,2.1154,236.19,236.16,12.42852425]
[1733264998335,2.1154,236.19,236.16,2.1156]
[1733264998836,2.1152,236.21,236.18,2.1154]
[1733264999837,3.28,236.24,236.18,2.1154]
[1733265000138,2.1152,236.2,236.18,2.1154]
[1733265000528,3.28,236.24,236.18,2.1154]
[1733265000730,2.1151,236.21,236.18,2.1154]
[1733265002236,10.31292425,236.3,236.13,10.31292425]
[1733265002537,10.31292425,236.3,236.2,2.1152]
[1733265002538,3.28,236.29,236.2,2.1152]
[1733265003136,2.115,236.23,236.2,2.1152]
[1733265003339,3.28,236.29,236.19,2.1152]
[1733265003837,2.115,236.22,236.19,2.1152]
[1733265004332,3.28,236.29,236.1,1.17885015]
[1733265004538,3.28,236.29,236.13,10.31292425]
[1733265004740,3.28,236.29,236.14,2.75202595]
[1733265004941,2.1147,236.26,236.17,2.1154]
[1733265005244,3.28,236.29,236.17,2.1154]
[1733265005432,3.28,236.29,236.18,2.1154]
[1733265005638,2.1152,236.21,236.18,8.72216229]
[1733265006040,6.60676229,236.27,236.18,8.72216229]
[1733265006738,2.1152,236.21,236.18,8.72216229]
[1733265007939,3.28,236.26,236.18,8.72216229]
[1733265008640,3.28,236.25,236.18,8.72216229]
[1733265009243,2.1151,236.21,236.18,8.72216229]
[1733265010237,2.115,236.22,236.18,8.72216229]
[1733265010434,2.115,236.22,236.18,13.91216229]
[1733265010640,3.28,236.25,236.18,13.91216229]
[1733265010844,3.28,236.25,236.19,6.26]
[1733265011440,2.1149,236.24,236.2,3.03]
[1733265011642,3.28,236.25,236.2,3.03]
[1733265011845,3.28,236.25,236.2,6.41]
[1733265012140,2.1151,236.22,236.2,6.41]
[1733265012440,3.28,236.25,236.2,6.41]
[1733265012751,2.1151,236.21,236.2,6.41]
[1733265018352,3.26,236.26,236.2,6.41]
[1733265018552,2.1151,236.22,236.2,6.41]
[1733265019150,2.1148,236.25,236.2,6.41]
[1733265019350,3.26,236.26,236.2,6.41]
[1733265020354,2.1151,236.21,236.2,6.41]
[1733265023249,7.8136,236.32,236.2,6.41]
[1733265023450,7.8136,236.32,236.23,2.1149]
[1733265023451,3.26,236.31,236.23,2.1149]
[1733265023654,3.26,236.31,236.21,6.60676229]
[1733265023857,2.1146,236.27,236.21,6.60676229]
[1733265024058,2.1146,236.27,236.23,2.1149]
[1733265024558,9.86676229,236.31,236.21,6.60676229]
[1733265024860,9.86676229,236.31,236.21,8.72186229]
[1733265025361,2.1148,236.25,236.22,3.03]
[1733265025957,2.1152,236.2,236.19,6.26]
[1733265027159,2.1152,236.2,236.19,2.1943]
[1733265028557,2.116,236.11,236.1,2.96]
[1733265029064,9.86676229,236.14,236.05,6.60676229]
[1733265029065,3.26,236.14,236.05,6.60676229]
[1733265029659,3.26,236.14,236.04,2.96]
[1733265029861,2.1164,236.07,236.06,6.60676229]
[1733265030361,3.26,236.14,236.06,6.60676229]
[1733265030562,9.86676229,236.14,236.06,6.60676229]
[1733265031958,9.86676229,236.14,236.04,4.7]
[1733265032155,9.86676229,236.14,235.79,17.50629984]
[1733265032156,19.27676229,236.07,235.78,1.18438823]
[1733265032353,19.27676229,236.07,235.7,2.6299]
[1733265032354,12.67,236.05,235.7,2.6299]
[1733265032554,2.119,235.78,235.7,2.6299]
[1733265032756,2.119,235.78,235.71,6.60676229]
[1733265033064,6.60676229,235.78,235.7,2.6299]
[1733265033264,2.1193,235.75,235.7,2.6299]
[1733265033754,2.1193,235.75,235.7,18.9399]
[1733265034157,6.60676229,235.76,235.7,18.9399]
[1733265034560,21.18350302,235.91,235.71,6.60676229]
[1733265034764,6.60676229,235.8,235.71,6.60676229]
[1733265035156,6.60676229,235.8,235.7,18.9399]
[1733265035355,6.60676229,235.8,235.71,6.60676229]
[1733265035662,10.36254773,235.85,235.7,18.9399]
[1733265036052,2.1186,235.82,235.7,18.9399]
[1733265037358,10.36254773,235.87,235.7,18.9399]
[1733265037556,10.36254773,235.87,235.71,3.28]
[1733265037861,10.36254773,235.87,235.7,18.9399]
[1733265038062,2.1189,235.8,235.71,3.28]
[1733265038258,10.36254773,235.87,235.7,18.9399]
[1733265039162,10.36254773,235.87,235.71,3.28]
[1733265039163,2.1189,235.79,235.71,3.28]
[1733265040160,2.1189,235.79,235.7,18.9399]
[1733265040362,2.1189,235.79,235.71,3.28]
[1733265041063,2.1189,235.79,235.71,3.26]
[1733265041359,10.36254773,235.87,235.71,3.26]
[1733265041963,2.1187,235.81,235.71,5.3796]
[1733265042665,2.1187,235.81,235.72,3.26]
[1733265043962,3.26,235.9,235.72,13.62254773]
[1733265044170,10.36254773,235.88,235.72,13.62254773]
[1733265044362,3.26,235.9,235.72,13.62254773]
[1733265044668,2.1186,235.82,235.72,13.62254773]
[1733265044965,10.36254773,235.88,235.72,13.62254773]
[1733265045164,2.1187,235.81,235.72,15.74204773]
[1733265045867,2.1185,235.83,235.74,2.1193]
[1733265046664,10.36254773,235.87,235.72,13.62254773]
[1733265046861,2.1185,235.84,235.72,13.62254773]
[1733265047666,2.1183,235.86,235.76,2.1191]
[1733265047869,10.36254773,235.87,235.72,13.62254773]
[1733265048669,10.36254773,235.87,235.73,2.17]
[1733265049372,2.1184,235.85,235.78,2.119]
[1733265049574,10.36254773,235.87,235.79,3.26]
[1733265049767,12.48074773,235.87,235.81,2.1187]
[1733265050370,2.14917062,235.94,235.83,10.36254773]
[1733265050671,10.36254773,235.97,235.82,2.6951]
[1733265050872,2.118,235.9,235.83,2.5119]
[1733265051175,12.50578083,235.97,235.83,2.5119]
[1733265051475,10.36254773,235.94,235.83,2.5119]
[1733265052169,12.52550188,235.94,235.83,2.5119]
[1733265052971,2.118,235.89,235.83,2.5119]
[1733265053378,2.118,235.89,235.84,4.91]
[1733265053673,2.118,235.89,235.85,3.39]
[1733265054676,12.52550188,235.94,235.85,3.39]
[1733265056879,10.36254773,235.93,235.85,3.39]
[1733265057976,2.118,235.89,235.85,3.39]
[1733265059075,10.36254773,235.93,235.85,3.39]
[1733265059378,2.1183,235.86,235.85,3.39]
[1733265059671,2.1183,235.86,235.85,9.67]
[1733265061281,2.1183,235.86,235.85,11.84]
[1733265065987,2.1183,235.86,235.85,9.7165]
[1733265066192,2.1184,235.85,235.84,4.91]
[1733265066598,10.36254773,235.87,235.81,2.0]
[1733265066792,10.36254773,235.82,235.81,2.0]
[1733265067393,12.48114773,235.82,235.81,2.0]
[1733265067591,8.75183908,235.82,235.81,2.0]
[1733265078601,8.75183908,235.82,235.58,2.58675967]
[1733265078602,6.63323908,235.8,235.62,6.63323908]
[1733265078898,16.63597582,235.81,235.63,2.75800514]
[1733265078899,6.63323908,235.7,235.63,2.75800514]
[1733265079102,2.1201,235.66,235.64,2.75800514]
[1733265079298,6.63323908,235.7,235.65,1.06077121]
[1733265079494,6.63323908,235.7,235.63,2.56]
[1733265079495,2.1199,235.68,235.63,2.56]
[1733265079801,6.63323908,235.7,235.64,1.06090105]
[1733265080002,2.1199,235.68,235.63,2.56]
[1733265080201,6.63323908,235.7,235.64,1.06089408]
[1733265080503,6.63323908,235.7,235.63,3.46]
[1733265081604,2.12,235.67,235.63,3.46]
[1733265081801,6.63323908,235.68,235.63,3.46]
[1733265082706,2.1202,235.64,235.63,3.46]
[1733265083005,2.1202,235.64,235.63,0.9]
[1733265085306,10.91941231,235.64,235.63,0.9]
[1733265085501,8.75343908,235.64,235.63,0.9]
[1733265086099,10.87650554,235.64,235.63,0.9]
[1733265086302,14.11650554,235.64,235.63,0.9]
[1733265088414,14.11650554,235.64,235.63,0.54]
[1733265091616,2.1203,235.63,235.62,0.36]
[1733265091807,11.99630554,235.64,235.55,2.57]
[1733265092011,6.63323908,235.56,235.55,2.57]
[1733265092209,8.75423908,235.56,235.55,2.57]
[1733265093807,22.54323908,235.56,235.31,1.06139263]
[1733265094010,6.63323908,235.42,235.34,2.1229]
[1733265094208,6.63323908,235.42,235.32,7.712]
[1733265094405,8.75543908,235.42,235.34,6.63323908]
[1733265095507,2.1221,235.44,235.36,6.63323908]
[1733265095812,6.63323908,235.45,235.35,6.63323908]
[1733265096012,2.1222,235.43,235.35,8.75603908]
[1733265096208,6.63323908,235.48,235.32,10.952]
[1733265096416,6.63323908,235.48,235.39,6.63323908]
[1733265097011,6.63323908,235.46,235.39,6.63323908]
[1733265097508,3.24,235.54,235.32,10.952]
[1733265097710,3.24,235.54,235.39,6.63323908]
[1733265097906,8.75483908,235.49,235.39,6.63323908]
[1733265098112,6.63323908,235.49,235.41,6.63323908]
[1733265098313,2.1214,235.52,235.44,2.122]
[1733265098613,6.63323908,235.51,235.45,2.4767]
[1733265098818,2.55753908,235.51,235.45,2.4767]
[1733265099516,2.55753908,235.51,235.45,4.5986]
[1733265099712,6.63323908,235.5,235.45,4.5986]
[1733265099914,3.24,235.57,235.45,4.5986]
[1733265100118,6.63323908,235.5,235.45,4.5986]
[1733265100321,16.64744316,235.66,235.45,2.4767]
[1733265100613,6.63323908,235.52,235.45,2.4767]
[1733265101018,8.75463908,235.52,235.45,2.4767]
[1733265101217,6.63323908,235.52,235.45,2.4767]
[1733265102020,2.1213,235.53,235.45,9.10993908]
[1733265102414,2.1213,235.53,235.49,2.1216]
[1733265102612,2.11077655,235.66,235.46,3.24]
[1733265102814,2.6165,235.67,235.46,3.24]
[1733265102815,3.24,235.65,235.47,6.63323908]
[1733265103020,6.63323908,235.56,235.47,6.63323908]
[1733265103219,5.33227906,235.65,235.47,6.63323908]
[1733265103220,3.24,235.65,235.47,6.63323908]
[1733265103416,6.63323908,235.56,235.47,6.63323908]
[1733265103617,6.63323908,235.56,235.48,2.6985]
[1733265104124,2.1211,235.55,235.51,2.1214]
[1733265104520,6.63323908,235.57,235.51,2.1214]
[1733265104720,2.1211,235.55,235.51,2.1214]
[1733265105322,2.1211,235.55,235.48,2.6985]
[1733265105323,6.63323908,235.55,235.48,2.6985]
[1733265105716,6.63323908,235.53,235.48,2.6985]
[1733265105917,2.1214,235.51,235.48,2.6985]
[1733265106115,6.63323908,235.53,235.48,2.6985]
[1733265106621,2.1216,235.49,235.48,2.6985]
[1733265107318,6.63323908,235.51,235.45,2.4767]
[1733265107319,2.1219,235.46,235.45,2.4767]
[1733265109820,3.24,235.58,235.45,2.4767]
[1733265110016,6.63323908,235.54,235.45,2.4767]